Cogmind - Beta 16 @@@ ROGUE MODE // 2025.10.30 @ 17:06:30 Player: kiul Result: Destroyed by G-67 Veteran with Plasma Rifle Performance ------------- Evolutions (7) 3500 Regions Visited (18) 3600 Robots Destroyed (55) 275 Value Destroyed (2389) 2389 Prototype IDs (10) 200 Alien Tech Used (0) 0 Bonus (1403) 1403 TOTAL SCORE: 11367 Bonus ------- High Alert Combat Kills 12 Follower Combat Kills 691 Entered Garrisons 200 Used RIF Installer 500 Cogmind --------- Core Integrity 0/1300 Matter 273/300 Energy 136/150 System Corruption 37% Temperature Cool (0) Movement Treading (145) Location -3/Quarantine Parts ------- > --- POWER (2) -------- Micro Fission Core > --- PROPULSION (5) --- Biometal Medium Treads > --- UTILITY (11) ----- Advanced Signal Interpreter Advanced Terrain Scan Processor Graphene Brace > --- WEAPON (3) ------- Improved Matter Neutralizer > --- INVENTORY (5) ---- Powered Hammer Peak State ------------ > --- POWER ------------ Light Antimatter Reactor Light Particle Reactor > --- PROPULSION ------- Gravmag Array Combat Gravmag System Antigrav Array > --- UTILITY ---------- Medium Storage Unit Advanced Weight Redist. System Advanced Sensor Array Advanced Signal Interpreter Advanced Terrain Scanner Advanced Terrain Scan Processor Advanced Melee Analysis Suite Advanced Reaction Control System Graphene Brace Hacking Suite Relay Coupler [Sentry] > --- WEAPON ----------- Remote Datajack Powered Hammer Powered Hammer > --- INVENTORY -------- Micro Fission Core Xenon Bombardment Thruster Xenon Bombardment Thruster Xenon Bombardment Thruster Relay Coupler [Grunt] Relay Coupler [Grunt] Relay Coupler [Grunt] Relay Coupler [Heavy] [Rating: 111] Favorites ----------- Power Improved Deuterium Engine Engine Improved Deuterium Engine Power Core Micro Fission Core Reactor Light Antimatter Reactor Propulsion Improved VTOL Module Treads Biometal Medium Treads Wheel Wheel Hover Unit Gravmag Array Flight Unit Improved VTOL Module Utility Advanced Weight Redist. System Device Advanced Weight Redist. System Storage Medium Storage Unit Processor Advanced Melee Analysis Suite Hackware Hacking Suite Protection Propulsion Shielding Weapon Powered Hammer Energy Gun Improved EM Shotgun Energy Cannon Improved Matter Neutralizer Ballistic Gun Minigun Ballistic Cannon Flak Cannon Launcher Precision Grenade Launcher Special Weapon Remote Datajack Impact Weapon Powered Hammer Slashing Weapon Great Axe Special Melee Weapon Improved Datajack Build | -11 -10 -9 -9 -9 -7 -7 -7 -7 -7 -6 -6 -6 -5 -4 -4 -4 -3 -3 ------- Run | Yrd Mat Mat Sto Rec Fac Was Fac Low Low Fac Low Low Fac Fac Gar Fac Res Qua Slots Evolved 14 | . . 2 . . 4 . . . . 2 . . 2 2 . . 2 . Power 1 | . . . . . . . . . . . . . . 1 . . . . Propulsion 3 | . . . . . 2 . . . . . . . . 1 . . . . Utility 9 | . . 1 . . 2 . . . . 2 . . 2 . . . 2 . Weapon 1 | . . 1 . . . . . . . . . . . . . . . . Parts Attached 93 | 6 1 10 6 4 11 . 12 . . 7 . . 3 4 2 10 13 4 Power 15 | 1 . 1 1 1 2 . 1 . . 1 . . . 1 . 2 3 1 Engine 9 | 1 . 1 1 1 1 . 1 . . 1 . . . 1 . 1 . . Core 2 | . . . . . 1 . . . . . . . . . . 1 . . Reactor 4 | . . . . . . . . . . . . . . . . . 3 1 Propulsion 21 | 2 . 3 . . 2 . 4 . . 2 . . . 1 . 3 3 1 Treads 1 | . . . . . . . . . . . . . . . . . . 1 Leg . | . . . . . . . . . . . . . . . . . . . Wheel 2 | 2 . . . . . . . . . . . . . . . . . . Hover 4 | . . . . . . . . . . . . . . . . 3 1 . Flight 14 | . . 3 . . 2 . 4 . . 2 . . . 1 . . 2 . Utility 35 | 1 . 3 1 3 3 . 3 . . 4 . . 3 1 1 5 6 1 Device 16 | . . 3 . 1 1 . 2 . . 2 . . 2 1 . 2 2 . Storage 3 | 1 . . . 1 1 . . . . . . . . . . . . . Processor 4 | . . . . . . . . . . 2 . . 1 . . 1 . . Hackware 9 | . . . . . 1 . 1 . . . . . . . 1 2 4 . Protection 3 | . . . 1 1 . . . . . . . . . . . . . 1 Artifact . | . . . . . . . . . . . . . . . . . . . Weapon 22 | 2 1 3 4 . 4 . 4 . . . . . . 1 1 . 1 1 Energy Gun 2 | . . . 1 . . . . . . . . . . 1 . . . . Energy Cannon 1 | . . . . . . . . . . . . . . . . . . 1 Ballistic Gun 6 | 2 . 1 . . 2 . 1 . . . . . . . . . . . Ballistic Cannon 3 | . . 1 2 . . . . . . . . . . . . . . . Launcher 5 | . 1 1 1 . 1 . 1 . . . . . . . . . . . Special Weapon 1 | . . . . . . . . . . . . . . . 1 . . . Impact Weapon 2 | . . . . . . . 1 . . . . . . . . . 1 . Slashing Weapon 1 | . . . . . . . 1 . . . . . . . . . . . Piercing Weapon . | . . . . . . . . . . . . . . . . . . . Special Melee Weapon 1 | . . . . . 1 . . . . . . . . . . . . . Unidentified Prototypes 10 | . . 1 2 . 1 . 3 . . 1 . . . 1 . . . 1 Corrupted Parts 1 | . . . . . . . . . . . . . . . . . 1 . System Corruption 2 | . . . . . . . . . . . . . . . . . 2 . Parts Lost 41 | . . 3 2 1 1 . 1 . . . . . . . 6 1 22 4 Power 5 | . . . . . . . . . . . . . . . 1 . 3 1 Propulsion 13 | . . 1 . . . . . . . . . . . . 3 1 7 1 Utility 16 | . . 1 1 . 1 . . . . . . . . . 2 . 9 2 Weapon 7 | . . 1 1 1 . . 1 . . . . . . . . . 3 . Highest Loss Streak 17 | . . 3 2 1 1 . 1 . . . . . . . 6 1 16 17 To Critical Strikes 1 | . . . . . . . . . . . . . . . . . 1 . Average Backups 8 | . 4 6 7 10 9 10 9 10 10 9 10 10 8 7 9 9 6 3 Power . | . . . . . . . . 1 1 1 1 1 1 . . . . . Propulsion 1 | . 2 1 1 2 . . . . . . 1 1 1 . . . 2 . Utility 4 | . . . . 4 4 5 5 6 6 5 5 5 3 3 5 7 3 . Weapon 2 | . 1 4 5 4 3 4 2 2 2 2 2 2 2 2 3 2 . 1 Tool/Special . | . . . . . . . . . . . . . . . . . . . Unused Backups 16 | . . 3 2 . . . 6 . . 1 . . . . 1 2 . 1 Power . | . . . . . . . . . . . . . . . . . . . Propulsion 2 | . . 2 . . . . . . . . . . . . . . . . Utility 10 | . . . 1 . . . 4 . . 1 . . . . 1 2 . 1 Weapon 4 | . . 1 1 . . . 2 . . . . . . . . . . . Tool/Special . | . . . . . . . . . . . . . . . . . . . Average Slot Usage (%) 78 | . 85 87 78 55 70 92 89 100 100 99 100 100 97 91 91 79 84 23 Engine 3 | . 14 11 5 . . . 6 7 7 6 6 6 5 9 9 5 . . Wheel 1 | . 28 16 . . . . . . . . . . . . . . . . Hover 2 | . . . . . . . . . . . . . . . . 6 13 . Flight 17 | . . 1 22 22 29 30 30 30 30 26 26 26 23 25 25 9 . . Device 14 | . . 17 15 9 9 15 19 7 7 12 13 13 14 14 15 16 21 4 Storage 7 | . 14 11 11 11 7 7 7 7 7 6 6 6 5 5 5 5 3 . Processor 5 | . . . . . . . . . . 6 6 6 11 10 10 14 14 14 Hackware 5 | . . . . . 3 7 8 15 15 13 13 13 11 10 10 7 7 . Protection 4 | . . . 3 11 7 7 1 7 7 6 6 6 5 4 4 . . . Ballistic Gun 2 | . 18 18 3 . 3 15 4 7 7 6 6 6 5 . . . . . Ballistic Cannon 1 | . . 1 8 . 3 . . . . . . . . . . . . . Launcher 1 | . 9 9 4 . . . 1 7 7 5 6 6 5 4 1 . . . Special Weapon 1 | . . . . . . . . . . . . . . . 1 5 3 . Impact Weapon 3 | . . . . . . . 3 7 7 6 6 6 5 5 5 5 6 . Peak Build Rating 111 | 6 6 24 26 16 38 37 47 47 47 62 62 62 71 85 84 83 111 56 Average Rating 49 | 4 6 14 19 14 27 37 41 47 47 59 62 62 69 71 76 69 100 31 On Entrance 41 | . 6 6 24 15 15 37 37 47 47 47 62 62 62 66 77 60 83 26 Avg Prop Armor Cover (%) 3 | . . . . 7 . . . . . . . . . . . 3 3 . Naked Turns . | . . . . . . . . . . . . . . . . . . . Heaviest Build 55 | 13 15 26 32 43 55 24 33 33 33 36 36 36 41 43 43 33 51 38 Greatest Support 71 | 20 20 20 10 16 25 25 35 35 35 37 37 37 37 44 44 55 71 35 Greatest Overweight (x) 4 | 4 . 2 3 4 2 . . . . . . . 1 . . 1 1 4 Average Overweight (x) . | . . . . 1 . . . . . . . . . . . . . . Largest Inventory Capacity 20 | 8 8 8 8 20 20 10 10 10 10 10 10 10 10 10 10 10 10 5 Average Capacity 11 | 7 8 8 8 17 14 10 10 10 10 10 10 10 10 10 10 10 9 5 Most Carried 11 | 3 5 8 8 11 10 10 10 10 10 10 10 10 9 10 10 10 10 5 Average Carried 8 | 1 4 6 7 10 9 10 9 9 10 9 10 10 8 7 9 9 6 3 Final Capacity 20 | 8 8 8 8 20 10 10 10 10 10 10 10 10 10 10 10 10 5 5 Final Carried 11 | 3 5 7 8 11 10 10 10 10 10 10 10 10 9 10 10 10 3 1 Class Distribution -------------------- 16% | Mutant 16% | Bothacker-Scout 12% | Sprinter 10% | Scientist-Sprinter 9% | Hacker-Sprinter 8% | Commander-Sprinter 6% | Commander-Mutant 6% | Scout 4% | Gunner Dominant Class ---------------- Mutant | -10/Materials Gunner | -9/Materials Commander-Sprinter | -9/Storage Mutant | -9/Recycling Sprinter | -7/Factory Sprinter | -7/Waste Sprinter | -7/Factory Hacker-Sprinter | -7/Lower Caves Hacker-Sprinter | -7/Lower Caves Hacker-Sprinter | -6/Factory Hacker-Sprinter | -6/Lower Caves Hacker-Sprinter | -6/Lower Caves Hacker-Mutant | -5/Factory Scientist-Sprinter | -4/Factory Scientist-Sprinter | -4/Garrison Bothacker-Scout | -4/Factory Bothacker-Scout | -3/Research Mutant | -3/Quarantine Resources | -11 -10 -9 -9 -9 -7 -7 -7 -7 -7 -6 -6 -6 -5 -4 -4 -4 -3 -3 ----------- Run | Yrd Mat Mat Sto Rec Fac Was Fac Low Low Fac Low Low Fac Fac Gar Fac Res Qua Matter Collected 2040 | 232 . 160 495 83 15 . 277 199 . . . . . . 45 91 443 . Remotely 655 | . . 160 495 . . . . . . . . . . . . . . . Salvage Created 1766 | . 17 123 326 29 15 . 101 179 . 191 . . . . 45 91 591 58 Parts 73 | . 5 8 19 1 1 . 4 9 . 8 . . . . 1 1 15 1 Haulers Intercepted 6 | . . . 2 . 1 . 1 . . . . . . . . 1 1 . Recyclers Shooed 1 | . . . . . . . . . . 1 . . . . . . . . Parts Field Recycled . | . . . . . . . . . . . . . . . . . . . Retrieved Matter . | . . . . . . . . . . . . . . . . . . . Parts Self-Destructed 3 | . . . . . . . . 3 . . . . . . . . . . Prevented 3 | . . . . . . . . 3 . . . . . . . . . . Parts Restored . | . . . . . . . . . . . . . . . . . . . Kills | -11 -10 -9 -9 -9 -7 -7 -7 -7 -7 -6 -6 -6 -5 -4 -4 -4 -3 -3 ------- Run | Yrd Mat Mat Sto Rec Fac Was Fac Low Low Fac Low Low Fac Fac Gar Fac Res Qua Combat Hostiles Destroyed 39 | . 3 3 7 . . . 3 7 . 4 . . . . 2 . 9 1 Melee 8 | . . . . . . . . 2 . . . . . . 2 . 4 . Guns 7 | . . 3 4 . . . . . . . . . . . . . . . Cannons 1 | . . . 1 . . . . . . . . . . . . . . . AOE 18 | . 3 . 2 . . . 3 5 . 4 . . . . . . 1 . Classes Destroyed 12 | . 2 2 2 . . . 1 1 . 1 . . . . . . 3 . Worker 1 | . . . 1 . . . . . . . . . . . . . . . Builder 1 | . . . . . . . . . . . . . . . . . 1 . Tunneler 1 | . . . . . . . . . . . . . . . . . 1 . Hauler 6 | . . . 2 . 1 . 1 . . . . . . . . 1 1 . Recycler 1 | . . . . . . . . . . 1 . . . . . . . . Operator 3 | . 1 1 . . . . 1 . . . . . . . . . . . Watcher 2 | . . . . . . . 1 . . . . . . . . . 1 . Swarmer 22 | . 3 . 2 . . . 3 3 . 4 . . . . 2 . 5 . Grunt 12 | . . 2 5 . . . . 3 . . . . . . . . 2 . Brawler 1 | . . . . . . . . 1 . . . . . . . . . . Sentry 3 | . . 1 1 . . . . . . . . . . . . . 1 . Programmer 2 | . . . . . . . . . . . . . . . . . 1 1 Best Kill Streak 5 | . 3 2 3 . 1 . 5 4 . 4 . . . . 2 1 4 1 Combat Bots Only 4 | . 3 2 2 . . . 3 4 . 4 . . . . 2 . 4 1 Max Kills in Single Turn 4 | . 2 1 1 . 1 . 4 2 . 2 . . . . 1 1 1 1 Gunslinging . | . . . . . . . . . . . . . . . . . . . Exploded 3 | . 2 . 1 . . . 3 2 . 2 . . . . . . 1 . Melee 1 | . . . . . . . . 1 . . . . . . 1 . 1 . Uniques/NPCs Destroyed . | . . . . . . . . . . . . . . . . . . . Combat | -11 -10 -9 -9 -9 -7 -7 -7 -7 -7 -6 -6 -6 -5 -4 -4 -4 -3 -3 -------- Run | Yrd Mat Mat Sto Rec Fac Was Fac Low Low Fac Low Low Fac Fac Gar Fac Res Qua Hostile Shots Fired 609 | . 5 15 41 5 4 . 55 14 9 55 . . . . 86 2 181 137 Missed 229 | . 3 2 14 3 1 . 25 7 3 29 . . . . 33 1 65 43 Hits 380 | . 2 13 27 2 3 . 30 7 6 26 . . . . 53 1 116 94 Melee 1 | . . . . . . . . . . 1 . . . . . . . . Projectile 379 | . 2 13 27 2 3 . 30 7 6 25 . . . . 53 1 116 94 AOE 3 | . . . . . . . . . . . . . . . 3 . . . Critical Strikes 16 | . . . 1 . . . . . . 2 . . . . . . 5 8 Actively Blocked 12 | . . . . . . . . . . . . . . . . . 4 8 Damage Taken 6721 | . 209 217 406 71 68 . 250 96 36 292 . . . . 654 25 2181 2216 Core 1919 | . 116 61 70 25 . . 81 47 6 70 . . . . 126 . 437 880 Absorbed by Shields 129 | . . . . 6 . . . . . 73 . . . . 50 . . . Redirected to Shielding 72 | . . . 6 . . . 1 2 1 9 . . . . 53 . . . Regen/Repaired (Parts) 133 | . . . . . . . . . . 20 . . . 113 . . . . Core Remaining (%) 82 | 100 53 . . 61 . . . . 80 . . 91 100 . . 89 . . Volleys Fired 81 | . 8 8 31 . 4 . 1 6 . 3 . . . . 1 4 10 5 Largest 3 | . 2 3 3 . 2 . 1 2 . 2 . . . . 1 1 1 1 Hottest 113 | . 50 75 111 . 74 . 36 61 . 61 . . . . 5 5 36 113 Shots Fired 129 | . 16 19 49 1 7 . 1 11 . 6 . . . . 1 4 10 4 Gun 54 | . 8 16 20 1 . . . 6 . 3 . . . . . . . . Cannon 26 | . . . 15 . 7 . . . . . . . . . . . . 4 Launcher 35 | . 8 3 14 . . . 1 5 . 3 . . . . . . 1 . Special 14 | . . . . . . . . . . . . . . . 1 4 9 . Kinetic 64 | . 8 16 24 . 7 . . 6 . 3 . . . . . . . . Thermal 4 | . . . . . . . . . . . . . . . . . . 4 Explosive 35 | . 8 3 14 . . . 1 5 . 3 . . . . . . 1 . Electromagnetic 12 | . . . 11 1 . . . . . . . . . . . . . . Robot Hit Streak 14 | . 2 10 14 1 3 . 3 3 . 5 . . . . 2 3 10 3 Robot Miss Streak 6 | . . 1 6 1 5 . . 2 . 1 . . . . . 1 1 2 Penetration Max . | . . . . . . . . . . . . . . . . . . . Secondary Targets . | . . . . . . . . . . . . . . . . . . . Shots Hit Robots 119 | . 2 15 25 1 7 . 7 6 . 5 . . . . 6 4 39 2 Core Hits 77 | . 3 8 29 1 5 . 7 8 . 6 . . . . 1 . 7 2 Critical Kills 2 | . . . . . . . . . . . . . . . 1 . . 1 Critical Parts Destroyed 10 | . . . . . . . 1 2 . . . . . . . . 7 . Critical Strikes 13 | . . . . . . . 2 2 . . . . . . 1 . 7 1 Meltdown 1 | . . . . . . . . . . . . . . . . . . 1 Smash 11 | . . . . . . . 1 2 . . . . . . 1 . 7 . Sever 1 | . . . . . . . 1 . . . . . . . . . . . Melee Attacks 69 | . . . . . . . 10 2 . 4 . . . 1 11 6 35 . Impact 66 | . . . . . . . 7 2 . 4 . . . 1 11 6 35 . Slashing 2 | . . . . . . . 2 . . . . . . . . . . . Piercing . | . . . . . . . . . . . . . . . . . . . Sneak Attacks 11 | . . . . . . . 2 . . 1 . . . . 1 1 6 . Combat Hostiles 1 | . . . . . . . . . . . . . . . . . 1 . Follow-up Attacks . | . . . . . . . . . . . . . . . . . . . Damage Inflicted 5436 | . 211 343 659 28 111 . 618 647 . 528 . . . . 310 90 1660 231 Guns 483 | . 10 188 173 23 . . . 34 . 55 . . . . . . . . Cannons 520 | . . . 214 . 111 . . . . . . . . . . . . 195 Explosions 2038 | . 201 155 270 . . . 366 513 . 385 . . . . . . 148 . Melee 2343 | . . . . . . . 252 100 . 88 . . . . 310 90 1503 . Ramming 52 | . . . 2 5 . . . . . . . . . . . . 9 36 Kinetic 627 | . 10 188 229 . 111 . . 34 . 55 . . . . . . . . Thermal 195 | . . . . . . . . . . . . . . . . . . 195 Explosive 2038 | . 201 155 270 . . . 366 513 . 385 . . . . . . 148 . Electromagnetic 181 | . . . 158 23 . . . . . . . . . . . . . . Impact 2306 | . . . . . . . 215 100 . 88 . . . . 310 90 1503 . Slashing 37 | . . . . . . . 37 . . . . . . . . . . . Piercing . | . . . . . . . . . . . . . . . . . . . Highest Corruption 37 | . . . 5 5 . 7 12 12 12 . . . . . . . 4 37 Average Corruption 6 | . . . 5 5 . 7 8 12 12 . . . . . . . 2 14 Corruption Purged . | . . . . . . . . . . . . . . . . . . . Corruption Blocked . | . . . . . . . . . . . . . . . . . . . Effects 62 | . . . 3 25 . 2 19 6 . . . . . . . . 1 6 Message Errors 16 | . . . 1 4 . 1 5 3 . . . . . . . . . 2 Matter Fused 10 | . . . 1 7 . . 1 1 . . . . . . . . . . Heat Flow Errors 11 | . . . . 4 . 1 6 . . . . . . . . . . . Energy Discharges 10 | . . . . 4 . . 3 . . . . . . . . . . 3 Data Loss (minor) 7 | . . . 1 2 . . 1 2 . . . . . . . . 1 . Data Loss (major) 4 | . . . . 3 . . 1 . . . . . . . . . . . Misfires 1 | . . . . 1 . . . . . . . . . . . . . . Misdirections 2 | . . . . . . . 2 . . . . . . . . . . . Weapon Failures 1 | . . . . . . . . . . . . . . . . . . 1 Overload Shots . | . . . . . . . . . . . . . . . . . . . Overflow Damage 997 | . 43 . . . . . 115 100 . 73 . . . . 116 20 530 . Projectiles . | . . . . . . . . . . . . . . . . . . . Explosions 81 | . 43 . . . . . 23 . . 15 . . . . . . . . Melee 916 | . . . . . . . 92 100 . 58 . . . . 116 20 530 . Knockbacks 11 | . . . 3 . 1 . . . . . . . . . 1 . 5 1 Impact 7 | . . . . . . . . . . . . . . . 1 . 5 1 Kinetic 4 | . . . 3 . 1 . . . . . . . . . . . . . Secondary . | . . . . . . . . . . . . . . . . . . . Self-Inflicted Damage 305 | . 197 32 32 2 . . . 23 . . . . . . . . 4 15 Shots 10 | . 6 1 2 . . . . 1 . . . . . . . . . . Rammed 13 | . . . 1 2 . . . . . . . . . . . . 1 9 Targets Rammed 13 | . . . 1 2 . . . . . . . . . . . . 1 9 Kicked . | . . . . . . . . . . . . . . . . . . . Crushed . | . . . . . . . . . . . . . . . . . . . Highest Temperature 279 | . 8 195 120 270 4 162 279 53 . 32 . . . 2 18 . . . Average Temperature 54 | . 6 53 45 99 4 87 121 18 . 17 . . . 1 3 . . . Received Heat Transfer 620 | . . 72 141 30 27 . 66 18 6 38 . . . . 90 9 60 63 Siege Activations . | . . . . . . . . . . . . . . . . . . . Martial Activations . | . . . . . . . . . . . . . . . . . . . Shielding Activations . | . . . . . . . . . . . . . . . . . . . Robots Disrupted . | . . . . . . . . . . . . . . . . . . . Combat Hostiles . | . . . . . . . . . . . . . . . . . . . Robots Corrupted 8 | . . . . . . . . . . 1 . . . . . 1 6 . Combat Hostiles 4 | . . . . . . . . . . . . . . . . . 4 . Parts Fried 11 | . . . . . . . 1 1 . . . . . . 2 . 7 . Impact Corruptions 27 | . . . . . . . 2 2 . 1 . . . . 3 1 18 . Robots Melted 1 | . . . . . . . . . . . . . . . . . . 1 Combat Hostiles 1 | . . . . . . . . . . . . . . . . . . 1 Parts Melted 2 | . . . . . . . . . . . . . . . . . . 2 Heat Transferred 148 | . . . . . . . . . . . . . . . . . . 148 Parts Sabotaged . | . . . . . . . . . . . . . . . . . . . Parts Stolen . | . . . . . . . . . . . . . . . . . . . Parts Stripped . | . . . . . . . . . . . . . . . . . . . Power Chain Reactions . | . . . . . . . . . . . . . . . . . . . Alert | -11 -10 -9 -9 -9 -7 -7 -7 -7 -7 -6 -6 -6 -5 -4 -4 -4 -3 -3 ------- Run | Yrd Mat Mat Sto Rec Fac Was Fac Low Low Fac Low Low Fac Fac Gar Fac Res Qua Maximum Alert Level 2 | . . . 2 1 . . 1 . . 1 . . . . 1 . . . Low Security (%) 88 | 100 100 100 55 92 100 100 78 . . 37 . . 100 100 87 100 100 100 Level 1 8 | . . . 18 7 . . 21 . . 62 . . . . 12 . . . Level 2 2 | . . . 25 . . . . . . . . . . . . . . . Level 3 . | . . . . . . . . . . . . . . . . . . . Level 4 . | . . . . . . . . . . . . . . . . . . . Level 5 . | . . . . . . . . . . . . . . . . . . . High Security . | . . . . . . . . . . . . . . . . . . . Max Security . | . . . . . . . . . . . . . . . . . . . Peak Influence 606 | . 131 99 606 238 56 . 340 . . 256 . . 39 63 255 128 99 20 Initial 232 | . . 55 28 232 . . . . . 169 . . 39 14 39 128 . . Average 67 | . 65 60 218 56 8 . 86 . . 210 . . 35 2 124 37 25 . Influence Increases 3007 | . 161 124 912 52 63 . 500 190 . 133 . . . 73 286 38 455 20 Destroy 0b10 Robot/C 1240 | . 60 60 440 40 40 . 60 140 . 80 . . . . 60 . 240 20 Destroy 0b10 Robot/NC 90 | . 5 5 20 5 5 . 15 . . 5 . . . . . 10 20 . Destroy Leader 248 | . 10 20 114 . 12 . 14 20 . 10 . . . . . 4 44 . Allied During Kill 197 | . . . 156 7 6 . . . . . . . . . 2 1 25 . Successful Hack 51 | . . . . . . . 6 . . 3 . . . 26 . . 16 . Disable Machine 240 | . 45 15 60 . . . 105 . . . . . . . . 15 . . Anti-Garrison Action 150 | . . . . . . . . . . . . . . . 150 . . . Destroy Structure 206 | . 41 24 62 . . . . . . 20 . . . 2 29 8 20 . Partial Spotted 150 | . . . 45 . . . 75 . . 15 . . . . 15 . . . Lose Combat Pursuer 435 | . . . 15 . . . 225 30 . . . . . 45 30 . 90 . Influence Decreases 2987 | . 30 186 383 650 63 . 176 181 64 210 112 16 35 46 97 283 455 . Entered New Map 1030 | . . 76 41 366 . . . 121 64 100 72 16 25 15 17 117 . . Time Decay 1434 | . 30 80 222 234 63 . 166 60 . 110 40 . 10 31 . 141 247 . Lost Part 333 | . . 30 20 10 . . 10 . . . . . . . 60 10 193 . Lost Ally 190 | . . . 100 40 . . . . . . . . . . 20 15 15 . Squads Dispatched 20 | . . . 4 . 2 . 8 . . 1 . . . . . 1 2 2 Investigation 1 | . . . 1 . . . . . . . . . . . . . . . Extermination 6 | . . . . . 1 . 2 . . . . . . . . 1 2 . Reinforcement 10 | . . . 1 . . . 6 . . 1 . . . . . . . 2 Assault . | . . . . . . . . . . . . . . . . . . . Garrison 3 | . . . 2 . 1 . . . . . . . . . . . . . Intercept . | . . . . . . . . . . . . . . . . . . . Searches Triggered . | . . . . . . . . . . . . . . . . . . . Construction Impeded . | . . . . . . . . . . . . . . . . . . . Haulers Reinforced 2 | . . . . . . . 1 . . . . . . . . . . 1 Active Scanning Responses . | . . . . . . . . . . . . . . . . . . . Cargo Convoy Interrupts . | . . . . . . . . . . . . . . . . . . . Stealth | -11 -10 -9 -9 -9 -7 -7 -7 -7 -7 -6 -6 -6 -5 -4 -4 -4 -3 -3 --------- Run | Yrd Mat Mat Sto Rec Fac Was Fac Low Low Fac Low Low Fac Fac Gar Fac Res Qua Distress Signals 10 | . . . 3 . . . . . . 1 . . . . 1 2 3 . Communications Jammed . | . . . . . . . . . . . . . . . . . . . Distress Signals . | . . . . . . . . . . . . . . . . . . . Times Spotted 167 | . 7 4 31 6 5 6 31 8 1 12 . . . 2 11 3 31 9 Peak Tracking Total 8 | . 3 2 5 3 3 6 7 5 1 7 . . . 3 7 2 7 8 Tactical Retreats 15 | . . . 1 . . . 7 2 . . . . . 1 1 . 3 . Traps | -11 -10 -9 -9 -9 -7 -7 -7 -7 -7 -6 -6 -6 -5 -4 -4 -4 -3 -3 ------- Run | Yrd Mat Mat Sto Rec Fac Was Fac Low Low Fac Low Low Fac Fac Gar Fac Res Qua Traps Triggered 9 | . . . 1 . 1 . 1 . . 1 . . . 1 3 . 1 . Indirectly . | . . . . . . . . . . . . . . . . . . . Trap Hack Attempts . | . . . . . . . . . . . . . . . . . . . Triggered . | . . . . . . . . . . . . . . . . . . . Disarmed . | . . . . . . . . . . . . . . . . . . . Reprogrammed . | . . . . . . . . . . . . . . . . . . . Reused . | . . . . . . . . . . . . . . . . . . . Traps Extracted . | . . . . . . . . . . . . . . . . . . . Installed . | . . . . . . . . . . . . . . . . . . . Triggered . | . . . . . . . . . . . . . . . . . . . Machines | -11 -10 -9 -9 -9 -7 -7 -7 -7 -7 -6 -6 -6 -5 -4 -4 -4 -3 -3 ---------- Run | Yrd Mat Mat Sto Rec Fac Was Fac Low Low Fac Low Low Fac Fac Gar Fac Res Qua Machines Disabled 19 | . 3 1 4 . . . 7 . . . . . . . 3 1 . . Max in Single Turn 6 | . 2 1 1 . . . 6 . . . . . . . 1 1 . . Garrison Relay 3 | . . . . . . . . . . . . . . . 3 . . . Machines Repaired . | . . . . . . . . . . . . . . . . . . . Machines Dismantled . | . . . . . . . . . . . . . . . . . . . Machines Sabotaged . | . . . . . . . . . . . . . . . . . . . Overloaded Fab Kills . | . . . . . . . . . . . . . . . . . . . Hacking | -11 -10 -9 -9 -9 -7 -7 -7 -7 -7 -6 -6 -6 -5 -4 -4 -4 -3 -3 --------- Run | Yrd Mat Mat Sto Rec Fac Was Fac Low Low Fac Low Low Fac Fac Gar Fac Res Qua Machines Accessed 28 | . 2 1 3 1 1 . 7 . . 3 . . . 4 . 2 4 . Terminals 16 | . 2 . 3 1 . . 5 . . 1 . . . 2 . 1 1 . Fabricators 2 | . . . . . . . . . . . . . . . . 1 1 . Repair Stations 2 | . . . . . . . . . . 1 . . . 1 . . . . Recycling Units 3 | . . 1 . . . . 1 . . . . . . . . . 1 . Scanalyzers 4 | . . . . . 1 . 1 . . 1 . . . . . . 1 . Garrison Access 1 | . . . . . . . . . . . . . . 1 . . . . Total Hacks 68 | . 5 1 9 2 3 . 15 . . 8 . . . 12 . 3 10 . Successful 31 | . 1 1 1 . . . 5 . . 4 . . . 9 . 2 8 . Failed 36 | . 4 . 8 2 3 . 10 . . 3 . . . 3 . 1 2 . Catastrophic 6 | . 1 . . . . . 5 . . . . . . . . . . . Database Lockouts 1 | . . . . . . . . . . 1 . . . . . . . . Manual 24 | . 4 . 3 2 2 . 8 . . 2 . . . . . . 3 . Terminals 40 | . 5 . 9 2 . . 10 . . 2 . . . 5 . 2 5 . Fabricators 2 | . . . . . . . . . . . . . . . . 1 1 . Repair Stations 10 | . . . . . . . . . . 4 . . . 6 . . . . Recycling Units 5 | . . 1 . . . . 2 . . . . . . . . . 2 . Scanalyzers 10 | . . . . . 3 . 3 . . 2 . . . . . . 2 . Garrison Access 1 | . . . . . . . . . . . . . . 1 . . . . Terminal Hacks 11 | . 1 . 1 . . . 1 . . . . . . 2 . 1 5 . Record 4 | . . . . . . . . . . . . . . . . 1 3 . Open DSF 2 | . . . . . . . 1 . . . . . . 1 . . . . Level Access Points 2 | . 1 . . . . . . . . . . . . . . . 1 . Registered Components 3 | . . . 1 . . . . . . . . . . 1 . . 1 . Fabricator Hacks 1 | . . . . . . . . . . . . . . . . 1 . . Network Status 1 | . . . . . . . . . . . . . . . . 1 . . Repair Station Hacks 9 | . . . . . . . . . . 3 . . . 6 . . . . Scan Component 5 | . . . . . . . . . . 2 . . . 3 . . . . Repair 4 | . . . . . . . . . . 1 . . . 3 . . . . Recycling Unit Hacks 4 | . . 1 . . . . 1 . . . . . . . . . 2 . Report Inventory 3 | . . 1 . . . . 1 . . . . . . . . . 1 . Retrieve Components 1 | . . . . . . . . . . . . . . . . . 1 . Scanalyzer 5 | . . . . . . . 3 . . 1 . . . . . . 1 . Retrieve Study 5 | . . . . . . . 3 . . 1 . . . . . . 1 . Garrison Access Hacks 1 | . . . . . . . . . . . . . . 1 . . . . Unlock Access 1 | . . . . . . . . . . . . . . 1 . . . . Unauthorized Hacks . | . . . . . . . . . . . . . . . . . . . Terminals . | . . . . . . . . . . . . . . . . . . . Fabricators . | . . . . . . . . . . . . . . . . . . . Repair Stations . | . . . . . . . . . . . . . . . . . . . Recycling Units . | . . . . . . . . . . . . . . . . . . . Scanalyzers . | . . . . . . . . . . . . . . . . . . . Garrison Access . | . . . . . . . . . . . . . . . . . . . Data Cores Recovered 1 | . . . . . . . 1 . . . . . . . . . . . Used 1 | . . . . . . . 1 . . . . . . . . . . . Hacking Detections 25 | . 2 . 3 1 2 . 7 . . 2 . . . 2 . 2 4 . Full Trace Events 2 | . . . 2 . . . . . . . . . . . . . . . Feedback Events . | . . . . . . . . . . . . . . . . . . . Feedback Blocked . | . . . . . . . . . . . . . . . . . . . Robot Schematics Acquired . | . . . . . . . . . . . . . . . . . . . Robots Built . | . . . . . . . . . . . . . . . . . . . Authchips . | . . . . . . . . . . . . . . . . . . . Time . | . . . . . . . . . . . . . . . . . . . Total Robot Build Rating . | . . . . . . . . . . . . . . . . . . . Part Schematics Acquired . | . . . . . . . . . . . . . . . . . . . Parts Built . | . . . . . . . . . . . . . . . . . . . Authchips . | . . . . . . . . . . . . . . . . . . . Time . | . . . . . . . . . . . . . . . . . . . Total Part Build Rating . | . . . . . . . . . . . . . . . . . . . Part Studies Acquired 5 | . . . . . . . 3 . . 1 . . . . . . 1 . Parts Repaired 4 | . . . . . . . . . . 1 . . . 3 . . . . Time 190 | . . . . . . . . . . 44 . . . 146 . . . . Parts Recycled . | . . . . . . . . . . . . . . . . . . . Recycled Matter . | . . . . . . . . . . . . . . . . . . . Retrieved Matter . | . . . . . . . . . . . . . . . . . . . Retrieved Components 3 | . . . . . . . . . . . . . . . . . 3 . Parts Scanalyzed . | . . . . . . . . . . . . . . . . . . . Part Schematics Acquired . | . . . . . . . . . . . . . . . . . . . Parts Damaged . | . . . . . . . . . . . . . . . . . . . Bothacking | -11 -10 -9 -9 -9 -7 -7 -7 -7 -7 -6 -6 -6 -5 -4 -4 -4 -3 -3 ------------ Run | Yrd Mat Mat Sto Rec Fac Was Fac Low Low Fac Low Low Fac Fac Gar Fac Res Qua Used RIF Installer 1 | . . . . . . . . . . . . . . . 1 . . . Robots Hacked 8 | . . . . . . . . . . . . . . . 1 3 4 . Non-combat 1 | . . . . . . . . . . . . . . . . 1 . . Combat 7 | . . . . . . . . . . . . . . . 1 2 4 . Robot Hacks Applied 11 | . . . . . . . . . . . . . . . 1 3 7 . parse_system 2 | . . . . . . . . . . . . . . . . 1 1 . streamctrl_high 4 | . . . . . . . . . . . . . . . 1 . 3 . formatsys_high 5 | . . . . . . . . . . . . . . . . 2 3 . Relay Couplers Released 13 | . . . . . . . . . . . . . . . 13 . . . Machine Destruction 13 | . . . . . . . . . . . . . . . 13 . . . Attached 6 | . . . . . . . . . . . . . . . 1 1 4 . Fabnet Peak Effective % . | . . . . . . . . . . . . . . . . . . . Robots Rewired 3 | . . . . 2 . . . . . 1 . . . . . . . . Allies Hacked 3 | . . . . . . . . . . . . . . . . 2 1 . Hacks Repelled . | . . . . . . . . . . . . . . . . . . . Allies | -11 -10 -9 -9 -9 -7 -7 -7 -7 -7 -6 -6 -6 -5 -4 -4 -4 -3 -3 -------- Run | Yrd Mat Mat Sto Rec Fac Was Fac Low Low Fac Low Low Fac Fac Gar Fac Res Qua Total Allies 21 | . . . 10 2 . 1 . . . 1 . . . . 1 2 4 . Largest Group 10 | . . . 10 4 2 3 . . . 1 . . . . 1 2 3 . Highest-Rated Group 141 | . . . 88 72 37 68 . . . 40 . . . . 49 98 141 . Highest-Rated Ally 64 | . . . 16 27 21 31 . . . 40 . . . . 49 49 64 . Total Orders . | . . . . . . . . . . . . . . . . . . . Ally Attacks 158 | . . . 97 14 12 11 . . . . . . . . 3 3 18 . Total Damage 2596 | . . . 839 161 226 205 . . . . . . . . 445 103 617 . Kills 25 | . . . 16 2 2 . . . . . . . . . 1 1 3 . Allies Corrupted 3 | . . . . . . . . . . . . . . . . 2 1 . Allies Melted 1 | . . . . 1 . . . . . . . . . . . . . . Intel | -11 -10 -9 -9 -9 -7 -7 -7 -7 -7 -6 -6 -6 -5 -4 -4 -4 -3 -3 ------- Run | Yrd Mat Mat Sto Rec Fac Was Fac Low Low Fac Low Low Fac Fac Gar Fac Res Qua Active Infowar (turns) 2333 | . . . . . . . 44 . . 231 99 10 28 360 157 473 931 . Sensors 2289 | . . . . . . . . . . 231 99 10 28 360 157 473 931 . Terrain 1355 | . . . . . . . 44 . . . . . . . . 448 863 . Robot Analysis Total . | . . . . . . . . . . . . . . . . . . . Derelict Logs Recovered 1 | . . . . . . . . . . . . 1 . . . . . . Drone Launches . | . . . . . . . . . . . . . . . . . . . Drone Recoveries . | . . . . . . . . . . . . . . . . . . . Exploration | -11 -10 -9 -9 -9 -7 -7 -7 -7 -7 -6 -6 -6 -5 -4 -4 -4 -3 -3 ------------- Run | Yrd Mat Mat Sto Rec Fac Was Fac Low Low Fac Low Low Fac Fac Gar Fac Res Qua Turns Passed 5348 | 59 94 164 479 1024 365 51 533 130 7 232 99 10 28 360 193 478 948 94 Spaces Moved 6368 | 45 83 120 483 697 314 156 1330 339 22 377 320 31 31 300 369 569 682 100 Core 142 | 14 . . . 7 . . . . . . . . . . . . 23 98 Treads 2 | . . . . . . . . . . . . . . . . . . 2 Legs . | . . . . . . . . . . . . . . . . . . . Wheels 224 | 31 83 110 . . . . . . . . . . . . . . . . Hover 939 | . . . . . . . . . . . . . . . . 285 654 . Flight 5061 | . . 10 483 690 314 156 1330 339 22 377 320 31 31 300 369 284 5 . Fastest Speed 26 | 50 80 80 32 32 26 26 26 29 29 29 31 31 31 28 28 34 50 50 Average Speed 54 | 105 80 95 64 138 64 26 26 29 29 30 31 31 77 28 28 58 59 61 Slowest Speed 312 | 250 80 172 242 312 170 26 29 29 29 31 31 31 111 28 34 120 126 250 Overloaded Moves . | . . . . . . . . . . . . . . . . . . . Propulsion Burnouts . | . . . . . . . . . . . . . . . . . . . Robots Hopped 35 | . . . 5 3 . . 20 . . 4 . . . . 3 . . . Potential Cave-ins 2 | . 1 . . . . . . . . . . . . . 1 . . . Cave-ins Triggered . | . . . . . . . . . . . . . . . . . . . Exploration Rate (%) 31 | 5 16 11 82 96 9 82 51 69 7 12 55 8 1 9 40 15 18 20 Regions Visited 18 Branch Regions 7 Pre-discovered Areas . | . . . . . . . . . . . . . . . . . . . Known Exits Taken 5 | . 1 . . . . . . . . . . . 1 1 . 1 1 . Unknown Exits Taken 10 | 1 . 1 1 1 . . 1 1 1 1 1 1 . . . . . . Scrap Searched 2 | . . . . . . . . 2 . . . . . . . . . . Spaces Dug 67 | . 45 . 12 . . . . . . 3 . . . 1 . 4 2 . Terrain Destroyed 254 | . 61 24 79 . . . . 50 . 26 . . . 1 . 4 9 . Melee 10 | . . . . . . . . . . 3 . . . 1 . 4 2 . Projectile . | . . . . . . . . . . . . . . . . . . . AOE 244 | . 61 24 79 . . . . 50 . 23 . . . . . . 7 . Terrain Rammed . | . . . . . . . . . . . . . . . . . . . Walls Destroyed . | . . . . . . . . . . . . . . . . . . . Machines Disabled . | . . . . . . . . . . . . . . . . . . . Actions | -11 -10 -9 -9 -9 -7 -7 -7 -7 -7 -6 -6 -6 -5 -4 -4 -4 -3 -3 --------- Run | Yrd Mat Mat Sto Rec Fac Was Fac Low Low Fac Low Low Fac Fac Gar Fac Res Qua Total 7997 | 53 93 159 608 747 469 165 1474 358 21 474 319 30 35 572 434 702 1160 124 Wait 1168 | . . . 69 32 122 10 102 10 . 62 . . . 244 2 105 408 2 Move 6283 | 44 82 119 472 690 314 155 1291 338 21 368 319 30 30 299 361 568 682 100 Hop 33 | . . . 5 3 . . 18 . . 4 . . . . 3 . . . Pick Up 67 | 3 2 13 7 5 5 . 11 1 . 2 . . . 2 7 3 4 2 Fast Attach 40 | 6 . 2 2 1 6 . 6 . . 2 . . . 4 . 6 3 2 Attach 51 | . . 6 2 1 8 . 3 . . 3 . . 3 3 4 2 13 3 Detach 21 | . . 1 2 . 5 . 3 . . . . . 2 2 2 1 3 . Swap 31 | . 1 2 4 2 1 . 9 . . 6 . . . 1 1 2 2 . Drop 61 | . . 8 10 2 4 . 20 1 . 4 . . . 1 4 5 1 1 Fire 81 | . 8 8 31 . 4 . 1 6 . 3 . . . . 1 4 10 5 Melee 68 | . . . . . . . 10 2 . 4 . . . 1 11 6 34 . Ram 10 | . . . 1 2 . . . . . . . . . . . . . 7 Kick . | . . . . . . . . . . . . . . . . . . . Crush 2 | . . . . . . . . . . . . . . . . . . 2 Escape Stasis 62 | . . . . . . . . . . 15 . . . 15 32 . . . Rewire 19 | . . . 3 9 . . . . . 1 . . . . 6 . . . Trap . | . . . . . . . . . . . . . . . . . . . Miscellaneous . | . . . . . . . . . . . . . . . . . . . Route ------- -11/Scrapyard -10/Materials (discovered 3 exits: *Mat x3) -9/Materials -9/Storage (discovered 2 exits: [*Mat] / *Rec) -9/Recycling (discovered 2 exits: *Fac / [*Scr]) -7/Factory -7/Waste -7/Factory -7/Lower Caves -7/Lower Caves -6/Factory -6/Lower Caves -6/Lower Caves -5/Factory -4/Factory -4/Garrison -4/Factory -3/Research (discovered 4 exits: Res x3 / *Qua) -3/Quarantine History --------- Turn | Location | Event 33 | -11/Scrapyard | Discovered new exit (range 15) 60 | -11/Scrapyard | Entered Materials 76 | -10/Materials | Identified exit to Materials 154 | -10/Materials | Entered another Materials area 154 | -9/Materials | Evolved 2 slots: Utility x1, Weapon x1 268 | -9/Materials | Discovered new exit (range 10) 283 | -9/Materials | Lost 3 parts (1n1u1w) 318 | -9/Materials | Entered Storage 556 | -9/Storage | Assisted by bots powering up and referring to "LRC-V3" 622 | -9/Storage | Met 01-MTF 629 | -9/Storage | Garrison activated, responded to threat 697 | -9/Storage | Lost 6 allies 710 | -9/Storage | Discovered new exit (range 15) 791 | -9/Storage | Discovered new exit (range 4) 797 | -9/Storage | Entered Recycling 797 | -9/Recycling | Accompanied by 5 allies (01-MTF) 942 | -9/Recycling | Discovered new exit (range 13) 1287 | -9/Recycling | Build established: Commander-Mutant 1325 | -9/Recycling | Scanned before Scraplab entrance 1379 | -9/Recycling | Lost 4 allies 1456 | -9/Recycling | Entered Scraplab 1481 | -9/Recycling | Discovered new exit (range 3) 1629 | -9/Recycling | Build established: Mutant 1821 | -9/Recycling | Entered Factory 1821 | -7/Factory | Accompanied by 2 allies 1821 | -7/Factory | Evolved 4 slots: Propulsion x2, Utility x2 1964 | -7/Factory | Garrison activated, responded to threat 2136 | -7/Factory | Discovered new exit (range 8) 2186 | -7/Factory | Sucked down chute 2186 | -7/Factory | Entered Waste 2187 | -7/Waste | Met a frightened Derelict 2196 | -7/Waste | Spotted C-40 Crusher 2196 | -7/Waste | Spotted C-40 Crusher 2201 | -7/Waste | EMP discharged 2201 | -7/Waste | Spotted C-40 Crusher 2201 | -7/Waste | Spotted C-40 Crusher 2203 | -7/Waste | Spotted C-40 Crusher 2206 | -7/Waste | Spotted C-40 Crusher 2211 | -7/Waste | 2 allies followed down the chute 2234 | -7/Waste | Discovered new exit (range 12) 2237 | -7/Waste | Entered Factory 2292 | -7/Factory | Build established: Sprinter 2592 | -7/Factory | System corruption reached 10% 2765 | -7/Factory | Discovered new exit (range 14) 2770 | -7/Factory | Entered Lower Caves 2789 | -7/Lower Caves | Encountered a Warlord checkpoint 2833 | -7/Lower Caves | Spotted B-75 Beast 2897 | -7/Lower Caves | Discovered new exit (range 11) 2900 | -7/Lower Caves | Entered another Lower Caves area 2902 | -7/Lower Caves | Attracted the attention of an 0b10 checkpoint 2905 | -7/Lower Caves | Discovered new exit (range 5) 2907 | -7/Lower Caves | Entered Factory 2907 | -6/Factory | Evolved 2 slots: Utility x2 2951 | -6/Factory | Central database locked down 3051 | -6/Factory | Repaired Xenon Bombardment Thruster+ 3109 | -6/Factory | Discovered new exit (range 12) 3139 | -6/Factory | Entered Lower Caves 3141 | -6/Lower Caves | Encountered a Warlord checkpoint 3237 | -6/Lower Caves | Discovered new exit (range 6) 3238 | -6/Lower Caves | Entered another Lower Caves area 3238 | -6/Lower Caves | Discovered new exit (range 16) 3239 | -6/Lower Caves | Encountered a Warlord checkpoint 3245 | -6/Lower Caves | Learned Factory emergency access door positions 3248 | -6/Lower Caves | Entered Factory 3248 | -5/Factory | Evolved 2 slots: Utility x2 3267 | -5/Factory | Discovered new exit (range 6) 3275 | -5/Factory | Identified exit to Factory 3276 | -5/Factory | Entered another Factory area 3276 | -4/Factory | Evolved 2 slots: Power x1, Propulsion x1 3356 | -4/Factory | Repaired Prc. Grenade Launcher 3384 | -4/Factory | Repaired Propulsion Shielding 3435 | -4/Factory | Repaired Nuclear Pulse Thruster+ 3636 | -4/Factory | Identified exit to Garrison 3636 | -4/Factory | Entered Garrison 3665 | -4/Garrison | Spotted B-86 Titan 3677 | -4/Garrison | Garrison Relay disabled 3690 | -4/Garrison | Triggered checkpoint 3719 | -4/Garrison | Discovered new exit (range 10) 3730 | -4/Garrison | Triggered checkpoint 3741 | -4/Garrison | Build established: Scientist-Sprinter 3750 | -4/Garrison | Identified exit to Factory 3762 | -4/Garrison | Triggered checkpoint 3779 | -4/Garrison | Installed Relay Interface Framework 3805 | -4/Garrison | Garrison Relay disabled 3816 | -4/Garrison | Garrison Relay disabled 3829 | -4/Garrison | Entered Factory 3854 | -4/Factory | Lost 6 parts (1p3n2u) 4260 | -4/Factory | Discovered new exit (range 15) 4268 | -4/Factory | Identified exit to Research 4307 | -4/Factory | Entered Research 4307 | -3/Research | Evolved 2 slots: Utility x2 4369 | -3/Research | Build established: Bothacker-Scout 4375 | -3/Research | Spotted B-86 Titan 4476 | -3/Research | Lost 6 parts (1p2n2u1w) 4988 | -3/Research | Identified exit to Research 5121 | -3/Research | P-80 Master assimilated allied Veteran 8e 5146 | -3/Research | Build established: Scout 5198 | -3/Research | Spotted B-86 Titan 5250 | -3/Research | Discovered new exit (range 10) 5255 | -3/Research | Identified exit to Quarantine 5255 | -3/Research | Entered Quarantine 5283 | -3/Quarantine | Core integrity fell below 50% 5287 | -3/Quarantine | Lost 17 parts (2p6n7u2w) 5292 | -3/Quarantine | System corruption reached 10% 5321 | -3/Quarantine | Core integrity fell below 20% 5343 | -3/Quarantine | System corruption reached 30% 5349 | -3/Quarantine | Destroyed by G-67 Veteran with Plasma Rifle Last Messages --------------- 05317_ Terminal disabled. 05325_ Lgt. Particle Reactor destroyed. 05326_ Acquired Prototype Energy Cannon. 05326_ Identified Imp. Matter Neutralizer. 05328_ System corrupted: Imp. Matter Neutralizer failed to cycle. 05332_ P-80 Master resets P-80 Master, system corruption cleaned. 05334_ P-80 Master destroyed. 05337_ P-80 Master resets P-80 Master, system corruption cleaned. 05338_ System corrupted: Energy discharge (-4). 05342_ Slammed into P-80 Master. 05343_ R-10 Processor collects Sml. Battery. 05345_ Slammed into P-80 Master. 05345_ Lyr. Heavy Armor Plating destroyed. 05345_ Adv. Melee Analysis Suite destroyed. 05347_ R-10 Processor collects Mic. Antimatter Reactor. 05347_ P-80 Master suffers critical hit (Meltdown). 05347_ Sml. Battery melted. 05347_ Gamma Rifle melted. 05347_ P-80 Master resets P-80 Master, system corruption cleaned. [Achievement: Back For More] Map ----- +----------------------------------------------------+ | | | | | | | | | ?????????????????????????????????????????????????? | | ?????????????????????????????????????????????????? | | ?????????????????????????????????????????????????? | | ?????????????????????????????????????????????????? | | ?????????????????????????????????????????????????? | | ?????????????????????????????????????????????????? | | ?????????????????????????????????????????????????? | | ?????????????????????????????????????????????????? | | ?????????????????????????????????????????????????? | | ?????????????????????????????????????????????????? | | ?????????????????????????????????????????????????? | | ?????????????????????????????????????????????????? | | ?????????????????????????????????????????????????? | | ????###+###+####??###+#####??????????????????????? | | ????# #??# #??????????????????????? | | ????# #??# ???????????????????????? | | ##### #### ??#######???????????????? | | %% ??#"" ""#???????????????? | | ##### #####" T""####????????????? | | ????# """ # #????????????? | | ????# """ """ """ #Rpg #????????????? | | ##### " " " " """ /g@p #????????????? | | # """ " " #p== "" #????????????? | | # #p%!! """" #????????????? | | # """ """ #############?????????????? | | " # " " " " ########?????????????????????????? | | "" # """ """ #????????????????????????????????? | | # ^ #????????????????????????????????? | | " # """ """ #????????????????????????????????? | | "" + " " " " #????????????????????????????????? | | # """ """ +????????????????????????????????? | | # # ???????????????????????????????? | | # "?" """#????????????????????????????????? | | # "?" """#????????????????????????????????? | | ##### ??" R"#????????????????????????????????? | | ????? ??? ?????????????????????????????????????? | | ????? ??? ?????????????????????????????????????? | | ????? ??? ?????????????????????????????????????? | | ?????????? ?????????????????????????????????????? | | ?????????????????????????????????????????????????? | | ?????????????????????????????????????????????????? | | ?????????????????????????????????????????????????? | | ?????????????????????????????????????????????????? | | ?????????????????????????????????????????????????? | | ?????????????????????????????????????????????????? | | ?????????????????????????????????????????????????? | +----------------------------------------------------+ Best States ------------- Heat Dissipation 61 Energy Generation 39 Energy Capacity 690 Matter Stores 300 Matter Capacity 300 Sight Range 16 Robot Scan Range 16 Terrain Scan Range 20 Terrain Scan Density 210 Additional Mass Support 9 Armor Coverage 600 Propulsion Shielding 33 Phase Shifting 5 Evasion (%) 70 Melee Accuracy 8 Recoil Reduction 4 Force Boost 20 Offensive Hacking 10 Defensive Hacking 10 Relay Coupler Types 1 Relay Coupler Value 33 Authchip Count 4 Item Schematics ----------------- None Robot Schematics ------------------ None Fabricated ------------ Nothing Repaired ---------- Xenon Bombardment Thruster | 33% | -6/Factory Prc. Grenade Launcher | 30% | -4/Factory Propulsion Shielding | 62% | -4/Factory Nuclear Pulse Thruster | 43% | -4/Factory Studied --------- Powered Hammer | -7/Factory | Hacked Imp. Deuterium Engine | -7/Factory | Hacked Xenon Bombardment Thruster | -7/Factory | Hacked Nuclear Pulse Thruster | -6/Factory | Hacked Antigrav Array | -3/Research | Hacked Alien Tech Used ----------------- None Achievements -------------- Back For More Frienemies Late Bloomer Omniscient Cartographer You May Approach The Wall Challenges ------------ None Game ------ Seed DimensionalAuthchipMallet Manual? 0 Play Time 01:52:58 Cumulative 40.7 hours Start 2025.10.30 @ 15:09:26 End 2025.10.30 @ 17:06:30 Sessions 1 Manual Loads 0 Difficulty Rogue Special Mode None Game No. 50 Rogue 50 Adventurer 0 Explorer 0 Win Type - Total 0 Types 0/0/0/0/0/0/0/0/0/0 Lore% 11 Gallery% 31 Achievement% 23 Wizard Run 0 Options --------- Layout 0 ASCII 0 Keyboard 1 Movement Arrows Keybinds 0 Fullscreen 1 Font 24/Smallcaps Map View 76x50 Zoom Use 0% Tactical HUD 1 Map Filters NONE Filters NONE Steam 1 RUN: 88e9a0b9-a7b3-4f5f-bc11-fbba27e0fe86